{"text_format":"1","workbook":"xlsx","n_sheets":2,"sheets":["TimeTracking","DropdownListen"],"not_rendered":{"charts":0,"images":4,"macros":1,"external_links":0,"defined_names":3,"comments":0,"pivot_tables":0},"unopened":[],"bounds":{"document_bytes":16777216,"sheet_cells":100000,"rows_first":2000,"rows_last":500,"rows_between":2000,"halvings":0,"cell_chars":16384,"cell_head_chars":4096},"cells_cut":0,"cells_raw":0,"read":"whole","date_system":"1900"}

{"sheet":"TimeTracking","index":0,"n_rows":27,"n_cols":9,"rows_kept":27,"cut":false,"hidden":false,"merged":[[0,2,0,8],[1,6,2,7],[27,2,27,4],[28,2,28,4],[1,4,1,5],[2,4,2,5],[24,3,24,5],[25,1,25,4],[26,1,26,4]]}
[null,{"$f":"NOW()","v":"2021-04-20T19:33:34.070"},"          "]
[null,null,null,null,null,null,"Time Tracking Homeoffice"]
[]
[null,"Datum","  Start","  Stop","Pause","  Zeit","Akivität 1","Aktivität 2","Bemerkungen"]
[null,null,{"$f":"Tabelle1[[#This Row],[Datum]]","v":"00:00:00"},null,null,{"$f":"D5-C5-TIME(0,E5,0)","v":"00:00:00"}]
[null,null,{"$f":"Tabelle1[[#This Row],[Datum]]","v":"00:00:00"},null,null,"00:00:00"]
[null,null,{"$f":"Tabelle1[[#This Row],[Datum]]","v":"00:00:00"},null,null,"00:00:00"]
[null,null,{"$f":"Tabelle1[[#This Row],[Datum]]","v":"00:00:00"},null,null,"00:00:00"]
[null,null,{"$f":"Tabelle1[[#This Row],[Datum]]","v":"00:00:00"},null,null,"00:00:00"]
[null,null,{"$f":"Tabelle1[[#This Row],[Datum]]","v":"00:00:00"},null,null,"00:00:00"]
[null,null,{"$f":"Tabelle1[[#This Row],[Datum]]","v":"00:00:00"},null,null,"00:00:00"]
[null,null,{"$f":"Tabelle1[[#This Row],[Datum]]","v":"00:00:00"},null,null,"00:00:00"]
[null,null,{"$f":"Tabelle1[[#This Row],[Datum]]","v":"00:00:00"},null,null,"00:00:00"]
[null,null,{"$f":"Tabelle1[[#This Row],[Datum]]","v":"00:00:00"},null,null,"00:00:00"]
[null,null,{"$f":"Tabelle1[[#This Row],[Datum]]","v":"00:00:00"},null,null,"00:00:00"]
[null,null,{"$f":"Tabelle1[[#This Row],[Datum]]","v":"00:00:00"},null,null,"00:00:00"]
[null,null,{"$f":"Tabelle1[[#This Row],[Datum]]","v":"00:00:00"},null,null,"00:00:00"]
[null,null,{"$f":"Tabelle1[[#This Row],[Datum]]","v":"00:00:00"},null,null,"00:00:00"]
[null,null,{"$f":"Tabelle1[[#This Row],[Datum]]","v":"00:00:00"},null,null,"00:00:00"]
[null,null,{"$f":"Tabelle1[[#This Row],[Datum]]","v":"00:00:00"},null,null,"00:00:00"]
[null,null,{"$f":"Tabelle1[[#This Row],[Datum]]","v":"00:00:00"},null,null,"00:00:00"]
[null,null,{"$f":"Tabelle1[[#This Row],[Datum]]","v":"00:00:00"},null,null,"00:00:00"]
[null,null,{"$f":"Tabelle1[[#This Row],[Datum]]","v":"00:00:00"},null,null,"00:00:00"]
[null,null,{"$f":"Tabelle1[[#This Row],[Datum]]","v":"00:00:00"},null,null,"00:00:00"]
[null,null,null,"Pausen in Minuten"]
[null,"Arbeitszeit gefiltert ",null,null,null,{"$f":"SUBTOTAL(109,Tabelle1[[  Zeit]])","v":0},"Lohn gefiltert",{"$f":"ROUND(F26*24,1)*I27","v":0},"Stundenlohn"]
[null,"Arbeitszeit Gesamt",null,null,null,{"$f":"SUM(Tabelle1[[  Zeit]])","v":0},"Lohn Gesamt",{"$f":"ROUND(F27*24,1)*I27","v":0},0]

{"sheet":"DropdownListen","index":1,"n_rows":24,"n_cols":3,"rows_kept":24,"cut":false,"hidden":false,"merged":[[0,1,0,2],[1,1,1,2]]}
[]
[null,"Inhalte Dropdown-Listen"]
[]
[null,"Aktivität 1","Aktivität 2"]
[null,"Aktivität 1-1","Aktivität 2-1"]
[null,"Aktivität 1-2","Aktivität 2-2"]
[null,"Aktivität 1-3","Aktivität 2-3"]
[null,"Aktivität 1-4","Aktivität 2-4"]
[null,"Aktivität 1-5","Aktivität 2-5"]
[null,"Aktivität 1-6","Aktivität 2-6"]
[null,"Aktivität 1-7","Aktivität 2-7"]
[null,"Aktivität 1-8","Aktivität 2-8"]
[null,"Aktivität 1-9","Aktivität 2-9"]
[null,"Aktivität 1-10","Aktivität 2-10"]
[null,"Aktivität 1-11","Aktivität 2-11"]
[null,"Aktivität 1-12","Aktivität 2-12"]
[null,"Aktivität 1-13","Aktivität 2-13"]
[null,"Aktivität 1-14","Aktivität 2-14"]
[null,"Aktivität 1-15","Aktivität 2-15"]
[null,"Aktivität 1-16","Aktivität 2-16"]
[null,"Aktivität 1-17","Aktivität 2-17"]
[null,"Aktivität 1-18","Aktivität 2-18"]
[null,"Aktivität 1-19","Aktivität 2-19"]
[null,"Aktivität 1-20","Aktivität 2-20"]